bitfinex-derivatives/quotes_BTCF0:USTF0_20241214
["timestamp","ask_amount","ask_price","bid_price","bid_amount"]
[1734163391175,0.08826877,101850.0,101840.0,3.00794072]
[1734163392571,0.08826877,101850.0,101840.0,1.80794072]
[1734163392771,0.08826877,101850.0,101840.0,1.82559407]
[1734163393166,0.08826877,101850.0,101840.0,1.82558898]
[1734163393575,0.08826877,101850.0,101840.0,2.18638898]
[1734163394276,0.08826877,101850.0,101840.0,1.83334818]
[1734163395481,0.08826877,101850.0,101840.0,2.18638898]
[1734163395776,0.08826877,101850.0,101840.0,1.89219345]
[1734163398172,0.08826877,101850.0,101840.0,1.83322262]
[1734163398372,0.08826877,101850.0,101840.0,2.18626342]
[1734163398576,0.08826877,101850.0,101840.0,1.89219345]
[1734163401575,0.08826877,101850.0,101840.0,2.1862587]
[1734163401773,0.08826877,101850.0,101840.0,1.89219345]
[1734163401973,0.08826877,101850.0,101840.0,2.18626059]
[1734163402477,0.08826877,101850.0,101840.0,1.89219345]
[1734163405581,0.08826877,101860.0,101840.0,1.89219345]
[1734163405781,0.08826877,101860.0,101850.0,0.76469486]
[1734163405984,0.08826877,101860.0,101850.0,0.80764957]
[1734163406174,0.08826877,101860.0,101850.0,1.04287878]
[1734163406481,0.08826877,101860.0,101850.0,1.54287878]
[1734163406684,0.08826877,101860.0,101850.0,1.30764957]
[1734163407085,0.08826877,101860.0,101850.0,1.54288205]
[1734163407277,0.08826877,101860.0,101850.0,1.30764957]
[1734163408486,0.08826877,101860.0,101850.0,1.54287154]
[1734163408688,0.08826877,101860.0,101850.0,1.54286834]
[1734163408884,0.08826877,101860.0,101850.0,1.54287007]
[1734163409088,0.08826877,101860.0,101850.0,1.30764957]
[1734163411888,0.08826877,101860.0,101850.0,1.54288329]
[1734163413792,0.0334,101860.0,101850.0,1.54288329]
[1734163415584,0.18059532,101860.0,101850.0,1.54288329]
[1734163416385,0.29043129,101860.0,101850.0,1.48213132]
[1734163417292,0.22967932,101860.0,101850.0,1.54288329]
[1734163417792,0.22967932,101860.0,101850.0,1.30764957]
[1734163419490,0.29043129,101860.0,101850.0,1.30764957]
[1734163420082,0.24134729,101860.0,101850.0,1.30764957]
[1734163420293,0.18059532,101860.0,101850.0,1.30764957]
[1734163424098,0.22967932,101860.0,101850.0,1.30764957]
[1734163428101,0.46704711,101860.0,101850.0,1.48239158]
[1734163428499,0.46704711,101860.0,101850.0,0.98239158]
[1734163431102,0.52779908,101860.0,101850.0,0.98239158]
[1734163431307,0.46704711,101860.0,101850.0,0.98239158]
[1734163431499,0.52779908,101860.0,101850.0,0.98239158]
[1734163431804,0.46704711,101860.0,101850.0,0.32753769]
[1734163432304,0.38060376,101860.0,101850.0,0.32753769]
[1734163433009,0.31985179,101860.0,101850.0,0.32753769]
[1734163433306,0.38060376,101860.0,101850.0,0.32753769]
[1734163434701,0.52775718,101860.0,101850.0,0.32753769]
[1734163437403,0.88855718,101860.0,101850.0,0.27844869]
[1734163437602,0.88855718,101860.0,101850.0,0.04295471]
[1734163437603,0.56478794,101860.0,101850.0,0.04295471]
[1734163437810,0.76978652,101860.0,101850.0,0.04295471]
[1734163439608,1.06978652,101860.0,101840.0,0.04]
[1734163439912,0.49882318,101850.0,101840.0,0.08296539]
[1734163440507,1.07333778,101850.0,101840.0,0.08296539]
[1734163440702,0.89689294,101850.0,101840.0,0.00488418]
[1734163441009,0.049099,101830.0,101820.0,0.23561871]
[1734163441212,0.37452778,101830.0,101820.0,0.00012473]
[1734163441411,0.40652778,101830.0,101820.0,0.00012473]
[1734163442110,0.34760998,101830.0,101820.0,0.00012473]
[1734163442305,0.34760998,101830.0,101820.0,0.36092473]
[1734163443609,0.25948511,101830.0,101820.0,0.36092473]
[1734163444112,0.34755005,101830.0,101820.0,0.36092473]
[1734163444414,0.37965005,101830.0,101820.0,0.36092473]
[1734163444619,0.31889808,101830.0,101820.0,0.91002773]
[1734163444814,0.37965005,101830.0,101820.0,0.91002773]
[1734163445918,0.37965005,101830.0,101820.0,0.41002773]
[1734163446716,0.38967511,101830.0,101820.0,0.41002773]
[1734163447311,0.38967511,101830.0,101820.0,0.36092473]
[1734163448213,0.27204097,101830.0,101820.0,0.36092473]
[1734163450807,0.27204097,101830.0,101820.0,0.00012473]
[1734163451009,0.38967511,101830.0,101820.0,0.04309734]
[1734163451514,0.38967511,101830.0,101820.0,0.00012473]
[1734163452709,0.75047511,101830.0,101820.0,0.00012473]
[1734163452922,0.72316214,101830.0,101820.0,0.00012473]
[1734163453224,0.87020481,101830.0,101820.0,0.00012473]
[1734163456217,1.17020481,101830.0,101820.0,0.00012473]
[1734163457619,0.74870087,101830.0,101820.0,0.00012473]
[1734163457813,0.87020481,101830.0,101820.0,0.00012473]
[1734163458122,1.17020481,101830.0,101820.0,0.00012473]
[1734163458621,0.75257067,101830.0,101820.0,0.00012473]
[1734163459423,0.86986179,101830.0,101820.0,0.00012473]
[1734163459620,0.39177067,101830.0,101820.0,0.00012473]
[1734163459821,0.75257067,101830.0,101820.0,0.00012473]
[1734163461420,0.39177067,101830.0,101820.0,0.00012473]
[1734163461621,0.75257067,101830.0,101820.0,0.00012473]
[1734163462023,0.63106673,101830.0,101820.0,0.00012473]
[1734163462326,0.75257067,101830.0,101820.0,0.00012473]
[1734163462526,0.92902188,101830.0,101820.0,0.00012473]
[1734163466144,0.78197921,101830.0,101820.0,0.00012473]
[1734163467752,0.66047527,101830.0,101820.0,0.00012473]
[1734163467949,0.78197921,101830.0,101820.0,0.00012473]
[1734163469444,0.42117921,101830.0,101820.0,0.00012473]
[1734163469632,0.78197921,101830.0,101820.0,0.00012473]
[1734163472535,0.605528,101830.0,101820.0,0.04310279]
[1734163474533,0.244728,101830.0,101820.0,0.04310279]
[1734163474734,0.605528,101830.0,101820.0,0.04310279]
[1734163474934,0.244728,101830.0,101820.0,0.04310279]
[1734163475137,0.81052658,101830.0,101820.0,0.04310279]
[1734163475335,0.605528,101830.0,101820.0,0.04310279]
[1734163475533,0.244728,101830.0,101820.0,0.04310279]
[1734163475731,0.605528,101830.0,101820.0,0.04310279]
[1734163476239,0.44972658,101830.0,101820.0,0.04310279]
[1734163476429,0.81052658,101830.0,101820.0,0.04310279]
[1734163479237,0.605528,101830.0,101820.0,0.00012473]
[1734163479638,0.81052658,101830.0,101820.0,0.04310291]
[1734163480340,0.81052658,101830.0,101820.0,0.00012473]
[1734163484642,0.049103,101820.0,101810.0,0.23549398]
[1734163484941,0.79953283,101820.0,101810.0,0.04298011]
[1734163485137,0.62545891,101820.0,101800.0,0.23549398]
[1734163485337,0.7881863,101810.0,101800.0,0.27847838]
[1734163485540,0.74054588,101810.0,101800.0,0.27847838]
[1734163486249,0.74054588,101810.0,101800.0,0.0429844]
[1734163489844,0.74054588,101810.0,101790.0,0.84921098]
[1734163490050,0.43544372,101800.0,101790.0,0.89219693]
[1734163490242,0.43544372,101800.0,101790.0,0.89169693]
[1734163493153,0.28831773,101800.0,101790.0,0.89169693]
[1734163499057,0.37652146,101800.0,101790.0,0.89169693]
[1734163499750,0.28831773,101800.0,101790.0,0.89169693]
[1734163500149,0.16681379,101800.0,101790.0,0.89169693]
[1734163500356,0.28831773,101800.0,101790.0,0.89169693]
[1734163500665,0.22756576,101800.0,101790.0,0.89169693]
[1734163503859,0.22756576,101800.0,101790.0,1.20951098]
[1734163506464,0.22756576,101800.0,101790.0,1.25249575]
[1734163509166,0.37469175,101800.0,101790.0,1.25249575]
[1734163510061,0.25699096,101800.0,101790.0,1.25249575]
[1734163510666,0.26483013,101800.0,101790.0,1.31324772]
[1734163510864,0.20598721,101800.0,101790.0,1.73260763]
[1734163511065,0.08828307,101800.0,101790.0,2.08592791]
[1734163511263,0.20598721,101800.0,101790.0,1.73288711]
[1734163511761,0.26673918,101800.0,101790.0,1.67213514]
[1734163513164,0.26673918,101800.0,101790.0,2.02517594]
[1734163513360,0.26673918,101800.0,101790.0,1.67213514]
[1734163513564,0.26673918,101800.0,101790.0,2.02517594]
[1734163515163,0.31585218,101800.0,101790.0,2.02517594]
[1734163515763,0.26059237,101800.0,101790.0,2.02517594]
[1734163516768,0.26059237,101800.0,101790.0,2.28130993]
[1734163517161,0.26059237,101800.0,101790.0,2.02517594]
[1734163517465,0.26059237,101800.0,101790.0,1.30357594]
[1734163517768,0.26059237,101800.0,101790.0,2.02517594]
[1734163523068,0.26059237,101800.0,101790.0,1.67213514]
[1734163524067,0.28832108,101800.0,101790.0,1.60803514]
[1734163524261,0.28832108,101800.0,101790.0,1.84349154]
[1734163528577,0.43544707,101800.0,101790.0,1.84349154]
[1734163530071,0.3746951,101800.0,101790.0,1.84349154]
[1734163531368,0.3746951,101800.0,101790.0,1.48269154]
[1734163534975,0.26483013,101800.0,101790.0,1.54344351]
[1734163535277,0.11770414,101800.0,101790.0,1.69472791]
[1734163535473,0.11770414,101800.0,101790.0,1.75912791]
[1734163537078,0.06244375,101800.0,101790.0,1.75912791]
[1734163537581,0.06244375,101800.0,101790.0,2.23425731]
[1734163538183,0.06244375,101800.0,101790.0,1.93992394]
[1734163538985,0.11155675,101800.0,101790.0,1.87917197]
[1734163539182,0.11155675,101800.0,101790.0,2.23435467]
[1734163539387,0.11155675,101800.0,101790.0,1.97598517]
[1734163539684,0.11155675,101800.0,101790.0,1.94011042]
[1734163539883,0.11155675,101800.0,101790.0,2.23456105]
[1734163540081,0.11155675,101800.0,101790.0,1.94011042]
[1734163542079,0.06244375,101800.0,101790.0,1.62297463]
[1734163545981,0.06244375,101800.0,101790.0,1.98377463]
[1734163547979,0.06244375,101800.0,101790.0,1.99374514]
[1734163550590,0.06244375,101800.0,101790.0,1.27214514]
[1734163550783,0.06244375,101800.0,101790.0,1.99374514]
[1734163551287,0.06244375,101800.0,101790.0,1.99394644]
[1734163551989,0.06244375,101800.0,101790.0,2.05252625]
[1734163552193,0.06244375,101800.0,101790.0,2.34696145]
[1734163552391,0.06244375,101800.0,101790.0,2.05252625]
[1734163552786,0.06244375,101800.0,101790.0,2.31103305]
[1734163553088,0.06244375,101800.0,101790.0,2.34696158]
[1734163553308,0.06244375,101800.0,101790.0,2.31104326]
[1734163553702,0.06244375,101800.0,101790.0,2.05252625]
[1734163555504,0.06244375,101800.0,101790.0,1.83556505]
[1734163555701,0.06244375,101800.0,101790.0,2.05228749]
[1734163557502,0.06244375,101800.0,101790.0,2.31062221]
[1734163558704,0.06244375,101800.0,101790.0,2.09389977]
[1734163559010,0.06244375,101800.0,101790.0,2.31055684]
[1734163559213,0.06244375,101800.0,101790.0,2.09389977]
[1734163559706,0.06244375,101800.0,101790.0,2.31099415]
[1734163560208,0.06244375,101800.0,101790.0,2.31143943]
[1734163561397,0.06244375,101800.0,101790.0,2.28083943]
[1734163563116,0.06244375,101800.0,101790.0,2.28152672]
[1734163563815,0.06244375,101800.0,101790.0,2.27155621]
[1734163565915,0.06244375,101800.0,101790.0,1.54995621]
[1734163566115,0.06244375,101800.0,101790.0,2.27155621]
[1734163567613,0.06244375,101800.0,101790.0,2.27160508]
[1734163568611,0.06244375,101800.0,101790.0,1.55000508]
[1734163568913,0.06244375,101800.0,101790.0,2.27160508]
[1734163569713,0.06244375,101800.0,101790.0,1.55000508]
[1734163569916,0.06244375,101800.0,101790.0,1.91080508]
[1734163571721,0.06244375,101800.0,101790.0,1.55000508]
[1734163571917,0.06244375,101800.0,101790.0,1.91080508]
[1734163572117,0.06244375,101800.0,101790.0,1.55000508]
[1734163572321,0.06244375,101800.0,101790.0,1.91080508]
[1734163574621,0.06244375,101800.0,101790.0,1.55000508]
[1734163574818,0.06244375,101800.0,101790.0,1.65163015]
[1734163575018,0.06244375,101800.0,101790.0,1.29083015]
[1734163575223,0.06244375,101800.0,101790.0,1.65163015]
[1734163576127,0.06244375,101800.0,101790.0,1.91079449]
[1734163576421,0.06244375,101800.0,101790.0,1.91075069]
[1734163576618,0.06244375,101800.0,101790.0,1.54995069]
[1734163576819,0.06244375,101800.0,101790.0,2.27155069]
[1734163577016,0.06244375,101800.0,101790.0,1.91075069]
[1734163577221,0.06244375,101800.0,101790.0,2.27155069]
[1734163577625,0.06244375,101800.0,101790.0,1.54995069]
[1734163578018,0.06244375,101800.0,101790.0,2.27155069]
[1734163578627,0.06244375,101800.0,101790.0,1.29080534]
[1734163578831,0.06244375,101800.0,101790.0,2.01240534]
[1734163580229,0.06244375,101800.0,101790.0,1.95165337]
[1734163580922,0.06244375,101800.0,101790.0,1.9517123]
[1734163582021,0.06244375,101800.0,101790.0,1.9179123]
[1734163582825,0.12319572,101800.0,101790.0,1.9179123]
[1734163583025,0.06244375,101800.0,101790.0,1.97866427]
[1734163583424,0.12319572,101800.0,101790.0,1.97866427]
[1734163583625,0.12319572,101800.0,101790.0,2.1770959]
[1734163587529,0.12319572,101800.0,101790.0,2.1779315]
[1734163588731,0.06244375,101800.0,101790.0,2.1779315]
[1734163588927,0.12319572,101800.0,101790.0,2.1779315]
[1734163589726,0.12319572,101800.0,101790.0,1.95983923]
[1734163589921,0.12319572,101800.0,101790.0,2.17746087]
[1734163593236,0.12319572,101800.0,101790.0,1.45586087]
[1734163593439,0.12319572,101800.0,101790.0,2.17746087]
[1734163594235,0.06244375,101800.0,101790.0,1.91806421]
[1734163594447,0.06244375,101800.0,101790.0,2.17676771]
[1734163594635,0.06244375,101800.0,101790.0,1.9594623]
[1734163596430,0.3238471,101810.0,101790.0,2.01583441]
[1734163596737,0.24169473,101830.0,101810.0,0.049108]
[1734163596932,0.24169473,101830.0,101820.0,0.76519782]
[1734163597131,0.25170683,101830.0,101820.0,1.20444585]
[1734163597330,0.13573769,101830.0,101820.0,1.48279139]
[1734163597531,0.13578588,101830.0,101820.0,1.48279139]
[1734163599243,0.13578588,101830.0,101820.0,1.18824854]
[1734163599447,0.24563685,101830.0,101820.0,1.18824854]
[1734163599751,0.18488488,101830.0,101820.0,0.68824854]
[1734163600134,0.18488488,101830.0,101820.0,0.63914554]
[1734163600329,0.18488488,101830.0,101820.0,0.68824854]
[1734163600737,0.18488488,101830.0,101820.0,0.45288777]
[1734163604142,0.18488488,101830.0,101820.0,0.40378477]
[1734163604335,0.18488488,101830.0,101820.0,0.04298477]
[1734163606836,0.18488488,101830.0,101810.0,0.64526677]
[1734163606837,0.049103,101820.0,101810.0,0.64526677]
[1734163607036,0.10985497,101820.0,101810.0,0.68824078]
[1734163610347,0.17060694,101820.0,101810.0,0.68824078]
[1734163610642,0.20160694,101820.0,101810.0,0.63913478]
[1734163611843,0.56245513,101820.0,101800.0,0.89070362]
[1734163612044,0.17305997,101810.0,101800.0,0.63913992]
[1734163612351,0.17305997,101810.0,101800.0,0.59616077]
[1734163613348,0.17305997,101810.0,101800.0,0.64527377]
[1734163613649,0.17305997,101810.0,101800.0,0.68825401]
[1734163615847,0.17305997,101810.0,101800.0,0.63914101]
[1734163616042,0.23386013,101810.0,101800.0,0.27834101]
[1734163616249,0.59466013,101810.0,101800.0,0.21938238]
[1734163616449,0.77138124,101810.0,101800.0,0.04298024]
[1734163617758,0.049113,101800.0,101790.0,0.17640489]
[1734163617949,0.20341694,101800.0,101790.0,0.21939238]
[1734163618148,0.20341694,101800.0,101790.0,0.26851038]
[1734163623552,0.20341694,101800.0,101790.0,0.09210549]
[1734163623751,0.20341694,101800.0,101790.0,0.04298749]
[1734163628160,0.20341694,101800.0,101780.0,0.99428566]
[1734163628355,0.10986997,101790.0,101780.0,1.39807213]
[1734163628558,0.10986997,101790.0,101780.0,1.39857213]
[1734163629068,0.10986997,101790.0,101780.0,1.03777213]
[1734163629565,0.10986997,101790.0,101780.0,1.39807213]
[1734163631978,0.10986997,101790.0,101780.0,1.03727213]
[1734163632165,0.10986997,101790.0,101780.0,1.39807213]
[1734163632365,0.10986997,101790.0,101780.0,1.03727213]
[1734163632562,0.10986997,101790.0,101780.0,1.39807213]
[1734163633069,0.10986997,101790.0,101780.0,1.03727213]
[1734163633269,0.10986997,101790.0,101780.0,1.39807213]
[1734163633961,0.10986997,101790.0,101780.0,1.03727213]
[1734163634362,0.10986997,101790.0,101780.0,1.39807213]
[1734163634663,0.11983038,101790.0,101780.0,1.22166724]
[1734163635061,0.11983038,101790.0,101780.0,1.39790835]
[1734163635766,0.11983038,101790.0,101780.0,1.39793193]
[1734163635965,0.11983038,101790.0,101780.0,0.89793193]
[1734163637278,0.11983038,101790.0,101780.0,0.72166724]
[1734163637572,0.11983038,101790.0,101780.0,1.01621009]
[1734163637975,0.11983038,101790.0,101780.0,0.72166724]
[1734163638277,0.11983038,101790.0,101780.0,1.23485136]
[1734163638568,0.20792828,101790.0,101780.0,1.23485136]
[1734163638965,0.20792828,101790.0,101780.0,1.2348572]
[1734163641367,0.20792828,101790.0,101780.0,0.99949643]
[1734163642372,0.20792828,101790.0,101780.0,1.35294785]
[1734163643171,0.20792828,101790.0,101780.0,0.99214785]
[1734163643377,0.20792828,101790.0,101780.0,1.35294785]
[1734163643677,0.20792828,101790.0,101780.0,1.35332826]
[1734163645274,0.20792828,101790.0,101780.0,1.32002502]
[1734163648082,0.11983038,101790.0,101780.0,1.05878541]
[1734163648781,0.11983038,101790.0,101780.0,0.69798541]
[1734163648977,0.11983038,101790.0,101780.0,1.05878541]
[1734163649679,0.18063054,101790.0,101780.0,1.28681311]
[1734163649873,0.30011619,101790.0,101780.0,1.3200932]
[1734163650072,0.30011619,101790.0,101780.0,0.96664178]
[1734163650276,0.4768373,101790.0,101780.0,0.60584178]
[1734163650469,0.30011619,101790.0,101780.0,0.60584178]
[1734163650675,0.30011619,101790.0,101780.0,0.84155443]
[1734163650874,0.30011619,101790.0,101780.0,0.79243443]
[1734163651473,0.33171619,101790.0,101780.0,0.79243443]
[1734163651881,0.39246816,101790.0,101780.0,0.79243443]
[1734163652081,0.75326816,101790.0,101780.0,0.23567698]
[1734163652483,0.75326816,101790.0,101780.0,0.41238399]
[1734163652984,0.92998927,101790.0,101780.0,0.41238399]
[1734163653379,0.93038348,101790.0,101780.0,0.17670701]
[1734163653581,0.93038348,101790.0,101780.0,0.21970094]
[1734163656578,0.75366237,101790.0,101780.0,0.21970094]
[1734163656785,0.75366237,101790.0,101780.0,0.17670701]
[1734163663098,0.39286237,101790.0,101780.0,0.17670701]
[1734163663299,0.75366237,101790.0,101780.0,0.17670701]
[1734163664595,0.049123,101780.0,101770.0,0.41238399]
[1734163664896,0.64896578,101780.0,101770.0,0.41238399]
[1734163665087,0.79609761,101780.0,101770.0,0.21970373]
[1734163665288,0.82869761,101780.0,101770.0,0.21970373]
[1734163667601,0.68156578,101780.0,101770.0,0.17670701]
[1734163673092,0.82869761,101780.0,101770.0,0.17670701]
[1734163674307,0.71115877,101780.0,101770.0,0.17670701]
[1734163677902,0.73128651,101780.0,101770.0,0.17670701]
[1734163678112,0.79203848,101780.0,101770.0,0.17670701]
[1734163678407,0.79208667,101780.0,101770.0,0.17670701]
[1734163678613,0.049127,101770.0,101760.0,0.44538399]
[1734163678807,0.46668357,101770.0,101760.0,0.48838167]
[1734163679511,0.46668357,101770.0,101760.0,0.31167466]
[1734163680912,0.46668357,101770.0,101760.0,0.48834782]
[1734163681513,0.46668357,101770.0,101760.0,0.31167466]
[1734163681710,0.34906277,101770.0,101760.0,0.31167466]
[1734163682312,0.38186277,101770.0,101760.0,0.31167466]
[1734163683514,0.38186277,101770.0,101760.0,0.26867698]
[1734163684508,0.39184986,101770.0,101760.0,0.26867698]
[1734163686404,0.33109789,101770.0,101760.0,0.26867698]
[1734163693719,0.507819,101770.0,101760.0,0.45539291]
[1734163695510,0.33109789,101770.0,101760.0,0.27867694]
[1734163697620,0.33109789,101770.0,101760.0,0.23567698]
[1734163698022,0.26699789,101770.0,101760.0,0.23567698]
[1734163698220,0.26699789,101770.0,101760.0,0.26707698]
[1734163703628,0.20624592,101770.0,101760.0,0.31620898]
[1734163704016,0.26699789,101770.0,101760.0,0.31620898]
[1734163705025,0.26699789,101770.0,101760.0,0.67700898]
[1734163705232,0.26699789,101770.0,101760.0,0.96052151]
[1734163705523,0.26699789,101770.0,101760.0,0.59972151]
[1734163705731,0.26699789,101770.0,101760.0,0.96052151]
[1734163705929,0.26699789,101770.0,101760.0,1.00352101]
[1734163707632,0.26699789,101770.0,101760.0,1.0035198]
[1734163707831,0.26699789,101770.0,101760.0,1.00315017]
[1734163708027,0.15711892,101770.0,101760.0,1.06390214]
[1734163708234,0.27494311,101770.0,101760.0,1.42398025]
[1734163708428,0.21616865,101770.0,101760.0,1.91488196]
[1734163709327,0.21616865,101770.0,101760.0,1.64794748]
[1734163709736,0.21616865,101770.0,101760.0,1.69094362]
[1734163711438,0.21616865,101770.0,101760.0,1.98545299]
[1734163711734,0.26529565,101770.0,101760.0,1.98545299]
[1734163712526,0.26529565,101770.0,101760.0,1.63200157]
[1734163713135,0.26529565,101770.0,101760.0,1.98545299]
[1734163713330,0.26529565,101770.0,101760.0,1.63200157]
[1734163715326,0.17693828,101770.0,101760.0,1.55510543]
[1734163716037,0.23769025,101770.0,101760.0,0.99435346]
[1734163717132,0.23769025,101770.0,101760.0,0.95995346]
[1734163717930,0.23769025,101770.0,101760.0,0.95859462]
[1734163718131,0.17693828,101770.0,101760.0,0.95859462]
[1734163718331,0.23769025,101770.0,101760.0,0.95859462]
[1734163718738,0.26919025,101770.0,101760.0,0.95859462]
[1734163720337,0.38804584,101770.0,101760.0,1.00159062]
[1734163721535,0.29979025,101770.0,101760.0,0.92105862]
[1734163721733,0.44692208,101770.0,101760.0,0.27850479]
[1734163721934,0.44692208,101770.0,101760.0,0.45514509]
[1734163722331,0.44697027,101770.0,101760.0,0.45514509]
[1734163723441,0.32914608,101770.0,101760.0,0.45514509]
[1734163724033,0.86666719,101770.0,101760.0,0.2196363]
[1734163725445,0.68994608,101770.0,101760.0,0.1766403]
[1734163726232,0.62919411,101770.0,101760.0,0.1766403]
[1734163726447,0.68994608,101770.0,101760.0,0.1766403]
[1734163727174,0.86666719,101770.0,101760.0,0.21964264]
[1734163727472,0.86666719,101770.0,101760.0,0.1766403]
[1734163727473,0.68994608,101770.0,101760.0,0.1766403]
[1734163731272,0.62919411,101770.0,101760.0,0.1766403]
[1734163731475,0.62919411,101770.0,101760.0,0.77294909]
[1734163731476,0.32914608,101770.0,101760.0,0.77294909]
[1734163731675,0.23885677,101770.0,101760.0,0.59630879]
[1734163731865,0.29960874,101770.0,101760.0,0.59630879]
[1734163732871,0.29960874,101770.0,101760.0,0.64544079]
[1734163734569,0.29960874,101770.0,101760.0,0.28464079]
[1734163734761,0.29960874,101770.0,101760.0,0.23550879]
[1734163736964,0.29960874,101770.0,101760.0,0.41205895]
[1734163737355,0.44674057,101770.0,101760.0,0.41205895]
[1734163737857,0.32914608,101770.0,101760.0,0.41205895]
[1734163738953,0.44672828,101770.0,101760.0,0.41205895]
[1734163739154,0.44672828,101770.0,101760.0,0.17655016]
[1734163739459,0.44672828,101770.0,101760.0,0.41205895]
[1734163740249,0.44672828,101770.0,101760.0,0.21955064]
[1734163741553,0.46654867,101770.0,101760.0,0.21955064]
[1734163742451,0.46654867,101770.0,101760.0,0.45505943]
[1734163743153,0.46654867,101770.0,101760.0,0.21955064]
[1734163743360,0.46654867,101770.0,101760.0,0.45505943]
[1734163743655,0.46658535,101770.0,101760.0,0.45505943]
[1734163743858,0.82738535,101770.0,101760.0,0.45505943]
[1734163744159,0.70976647,101770.0,101760.0,0.21955064]
[1734163744346,0.94723955,101770.0,101760.0,0.21955064]
[1734163744564,0.88648758,101770.0,101760.0,0.21955064]
[1734163744752,0.94723955,101770.0,101760.0,0.21955064]
[1734163745357,0.88648758,101770.0,101760.0,0.21955064]
[1734163747054,0.94723955,101770.0,101760.0,0.21955064]
[1734163749458,0.94723955,101770.0,101760.0,0.45505943]
[1734163750456,0.80010772,101770.0,101760.0,0.45505943]
[1734163756966,0.73935575,101770.0,101760.0,0.45505943]
[1734163760761,0.67860378,101770.0,101760.0,0.45505943]
[1734163760961,0.73935575,101770.0,101760.0,0.45505943]
[1734163767474,0.37855575,101770.0,101760.0,0.45505943]
[1734163767671,0.73935575,101770.0,101760.0,0.45505943]
[1734163768574,0.73935575,101770.0,101760.0,0.27850927]
[1734163769775,0.37855575,101770.0,101760.0,0.27850927]
[1734163769977,0.73935575,101770.0,101760.0,0.27850927]
[1734163770371,0.67860378,101770.0,101760.0,0.27850927]
[1734163770681,0.73935575,101770.0,101760.0,0.27850927]
[1734163771577,0.73935575,101770.0,101760.0,0.57301864]
[1734163771772,0.73935575,101770.0,101760.0,0.45538918]
[1734163772373,0.73935575,101770.0,101760.0,0.27850927]
[1734163773883,0.73935575,101770.0,101760.0,0.57301864]
[1734163774583,0.70875575,101770.0,101760.0,0.57301864]
[1734163774776,0.46380556,101770.0,101760.0,0.83209931]
[1734163774973,0.28708445,101770.0,101760.0,0.07710048]
[1734163775178,0.28708445,101770.0,101760.0,0.0341]
[1734163777373,0.31978445,101770.0,101760.0,0.0341]
[1734163777681,0.68058445,101770.0,101760.0,0.0341]
[1734163778571,0.66076406,101770.0,101760.0,0.0341]
[1734163780476,0.68046744,101770.0,101760.0,0.0341]
[1734163781073,0.049132,101760.0,101750.0,0.83834572]
[1734163781279,0.1669806,101760.0,101750.0,1.10594103]
[1734163781780,0.1669806,101760.0,101750.0,1.06244038]
[1734163781979,0.1669806,101760.0,101750.0,0.70164038]
[1734163782175,0.1669806,101760.0,101750.0,1.06244038]
[1734163782880,0.1669806,101760.0,101750.0,1.45939242]
[1734163783884,0.1669806,101760.0,101750.0,1.45889242]
[1734163784574,0.1669806,101760.0,101750.0,1.09809242]
[1734163784776,0.1669806,101760.0,101750.0,1.45939242]
[1734163785880,0.1669806,101760.0,101750.0,1.4582504]
[1734163786880,0.1669806,101760.0,101750.0,1.4587504]
[1734163787779,0.1669806,101760.0,101750.0,1.4582504]
[1734163788185,0.1669806,101760.0,101750.0,1.16374103]
[1734163788882,0.1669806,101760.0,101750.0,1.16424103]
[1734163789578,0.1669806,101760.0,101750.0,1.4312829]
[1734163790986,0.1669806,101760.0,101750.0,1.16424103]
[1734163792693,0.22773257,101760.0,101750.0,1.16424103]
[1734163792893,0.22773257,101760.0,101750.0,1.0722318]
[1734163793590,0.37508238,101760.0,101750.0,1.0722318]
[1734163797392,0.22773257,101760.0,101750.0,1.0722318]
[1734163798892,0.37508238,101760.0,101750.0,1.69271761]
[1734163800689,0.31433041,101760.0,101750.0,1.69271761]
[1734163801381,0.1178486,101760.0,101750.0,1.191693]
[1734163801587,0.20624597,101760.0,101750.0,1.46594187]
[1734163801784,0.20624597,101760.0,101750.0,2.68307205]
[1734163801785,0.08839737,101760.0,101750.0,2.68307205]
[1734163801993,0.08839737,101760.0,101750.0,3.88307205]
[1734163802188,0.41872958,101770.0,101750.0,3.57187515]
[1734163802481,0.08839737,101760.0,101750.0,3.11202112]
[1734163802786,0.08839737,101760.0,101750.0,3.16209192]
[1734163802986,0.08839737,101760.0,101750.0,1.96209192]
[1734163803989,0.19828134,101760.0,101750.0,1.90133995]
[1734163804192,0.19828134,101760.0,101750.0,2.25486595]
[1734163806096,0.19828134,101760.0,101750.0,2.31561792]
[1734163806486,0.13752937,101760.0,101750.0,1.82811494]
[1734163806691,0.13752937,101760.0,101750.0,2.32077763]
[1734163811000,0.13752937,101760.0,101750.0,2.3205609]
[1734163812413,0.049132,101760.0,101750.0,2.3205609]
[1734163813801,0.13752937,101760.0,101750.0,2.3205609]
[1734163814505,0.08839737,101760.0,101750.0,2.3205609]
[1734163815508,0.08839737,101760.0,101750.0,2.32001204]
[1734163817511,0.2438278,101770.0,101760.0,0.049132]
[1734163817709,0.2438278,101770.0,101760.0,1.03256747]
[1734163817906,0.2443278,101770.0,101760.0,1.03256747]
[1734163819014,0.2438278,101770.0,101760.0,1.03256747]
[1734163819209,0.1609978,101770.0,101760.0,1.44668239]
[1734163819512,0.09843265,101770.0,101760.0,1.7478019]
[1734163819727,0.09843265,101770.0,101760.0,2.2478019]
[1734163819928,0.09843265,101770.0,101760.0,2.24777192]
[1734163819929,0.09893265,101770.0,101760.0,2.24777192]
[1734163820248,0.09893265,101770.0,101760.0,1.98742855]
[1734163820933,0.09843265,101770.0,101760.0,1.98742855]
[1734163821121,0.01003528,101770.0,101760.0,1.98742855]
[1734163821821,0.09893265,101770.0,101760.0,1.98742855]
[1734163822018,0.05966228,101770.0,101760.0,1.98742855]
[1734163822220,0.14805965,101770.0,101760.0,1.98742855]
[1734163822420,0.14805965,101770.0,101760.0,1.72050904]
[1734163822723,0.14805965,101770.0,101760.0,2.01476639]
[1734163822927,0.14755965,101770.0,101760.0,1.72050904]
[1734163823123,0.14755965,101770.0,101760.0,2.014765]
[1734163823433,0.14755965,101770.0,101760.0,1.95401303]
[1734163823928,0.14805965,101770.0,101760.0,1.95401303]
[1734163824826,0.14755965,101770.0,101760.0,1.95401303]
[1734163825822,0.14805965,101770.0,101760.0,1.95401303]
[1734163826023,0.14805965,101770.0,101760.0,1.82496106]
[1734163826229,0.18035965,101770.0,101760.0,1.88571303]
[1734163826928,0.17985965,101770.0,101760.0,1.88571303]
[1734163828027,0.18035965,101770.0,101760.0,1.88571303]
[1734163828334,0.18035965,101770.0,101760.0,1.88451476]
[1734163828724,0.18035965,101770.0,101760.0,1.88450515]
[1734163829026,0.17985965,101770.0,101760.0,1.88450515]
[1734163829730,0.17985965,101770.0,101760.0,1.59024919]
[1734163829930,0.18035965,101770.0,101760.0,1.59024919]
[1734163830927,0.17985965,101770.0,101760.0,1.59024919]
[1734163832033,0.18035965,101770.0,101760.0,1.59024919]
[1734163832932,0.18035965,101770.0,101760.0,1.85629961]
[1734163833134,0.18035965,101770.0,101760.0,1.856294]
[1734163834926,0.17985965,101770.0,101760.0,1.856294]
[1734163837632,0.17985965,101770.0,101760.0,1.85650652]